[Event "12th Senioren-Cup Tegernsee 2024"]
[Site "Rottach-Egern"]
[Date "2024.04.13"]
[Round "8.10"]
[White "Heck, Norbert"]
[Black "Lutz, Albert"]
[Result "1/2-1/2"]
[ECO "D70"]
[WhiteElo "2100"]
[BlackElo "2055"]
[Annotator "RC"]
[PlyCount "41"]
[EventDate "2024.04.02"]
[EventType "swiss"]
[EventCountry "GER"]
[SourceTitle "playchess.com"]
[Source "ChessBase"]
[SourceQuality "1"]
[TimeControl "7800+30"]

1. d4 {[%emt 0:00:06]} d5 {[%emt 0:00:13]} 2. Nf3 {[%emt 0:00:10]} Nf6 {[%emt 0:00:11]} 3. c4 {[%emt 0:00:14]} c6 {[%emt 0:00:41]} 4. Nbd2 {[%emt 0:00:09]} Bf5 {[%emt 0:00:42]} 5. Nh4 {[%emt 0:01:27]} Be6 {[%emt 0:01:14]} 6. e3 {[%emt 0:01:25]} g6 {[%emt 0:02:24]} 7. Bd3 {[%emt 0:01:32]} Bg7 {[%emt 0:02:00]} 8. Nhf3 {[%emt 0:00:11]} O-O {[%emt 0:00:54]} 9. O-O {[%emt 0:00:09]} Bf5 {[%emt 0:02:49]} 10. Bxf5 {[%emt 0:03:36]} gxf5 {[%emt 0:00:54]} 11. Qc2 {[%emt 0:03:27]} e6 {[%emt 0:01:37]} 12. b3 {[%emt 0:00:48]} Qa5 {[%emt 0:03:02]} 13. Bb2 {[%emt 0:01:33]} Nbd7 {[%emt 0:00:41]} 14. cxd5 {[%emt 0:02:52]} Nxd5 {[%emt 0:04:04]} 15. Nc4 {[%emt 0:01:10]} Qc7 {[%emt 0:03:35]} 16. Ba3 {[%emt 0:03:08]} c5 {[%emt 0:00:21]} 17. Rac1 {[%emt 0:01:01]} Rfc8 {[%emt 0:01:30]} 18. dxc5 {[%emt 0:06:02]} Nxc5 {[%emt 0:00:43]} 19. Nd4 {[%emt 0:04:07]} Qd7 {[%emt 0:03:04]} 20. Rfd1 {[%emt 0:06:29]} Ne4 {[%emt 0:04:15]} 21. Qd3 {[%emt 0:18:28]} 1/2-1/2

[Event "12th Senioren-Cup Tegernsee 2024"]
[Site "Rottach-Egern"]
[Date "2024.04.14"]
[Round "9.1"]
[White "Schneider-Zinner, Harald"]
[Black "Schrems, Hermann"]
[Result "1-0"]
[ECO "E01"]
[WhiteElo "2335"]
[BlackElo "2032"]
[Annotator "TA"]
[PlyCount "89"]
[EventDate "2024.04.02"]
[EventType "swiss"]
[EventCountry "GER"]
[SourceTitle "playchess.com"]
[Source "ChessBase"]
[SourceQuality "1"]
[TimeControl "7800+30"]

{[%evp 10,89,15,3,14,6,35,39,51,45,45,34,44,39,60,58,75,88,93,89,87,93,89,87,113,77,108,66,63,61,50,36,39,31,46,34,83,13,18,0,0,0,10,0,8,0,41,52,82,90,85,78,90,91,92,77,75,72,87,-8,0,0,621,606,620,282,275,265,422,94,94,94,94,94,5114,-112,-89,-89,-89,-6191,0,-29992]} 1. d4 {[%emt 0:00:09]} Nf6 {[%emt 2:11:00]} 2. Nf3 {[%emt 0:00:12]} e6 {[%emt 0:00:00]} 3. g3 {[%emt 0:02:21]} d5 {[%emt 0:00:00]} 4. c4 {[%emt 0:00:48]} Bb4+ {[%emt 0:00:00]} 5. Nbd2 {[%emt 0:00:42]} O-O {[%emt 0:00:00]} 6. Bg2 {[%emt 0:00:53]} a5 {[%emt 0:00:00]} 7. O-O {[%emt 0:01:42]} Nbd7 {[%emt 0:00:00]} 8. Qc2 {[%emt 0:02:47]} Be7 {[%emt 0:00:00] White is slightly better.} 9. e4 {[%emt 0:01:43]} dxe4 {[%emt 0:00:00]} 10. Nxe4 {[%emt 0:00:08]} Nxe4 {[%emt 0:00:00]} 11. Qxe4 {[%emt 0:00:07]} c5 {[%emt 0:00:00]} 12. Rd1 {[%emt 0:10:33]} Bf6 {[%emt 0:00:00]} 13. Be3 {[%emt 0:06:47]} Qc7 {[%emt 0:00:00]} 14. Ng5 {[%emt 0:10:08]} Bxg5 {[%emt 0:00:00]} 15. Bxg5 {[%emt 0:00:23]} cxd4 {[%emt 0:00:00]} 16. Qxd4 {[%emt 0:01:45]} Ra6 {[%emt 0:00:00]} 17. Rd2 {[%emt 0:11:10] White is much more active.} h6 {[%emt 0:00:00]} 18. Be3 {[%emt 0:09:16]} e5 {[%emt 0:00:00]} 19. Qc3 {[%emt 0:01:21]} Nf6 {[%emt 0:00:00]} 20. Rad1 {[%emt 0:05:05]} Bg4 {[%emt 0:00:00]} 21. f3 {[%emt 0:00:14]} Be6 {[%emt 0:00:00]} 22. b3 {[%emt 0:01:40]} Rc8 {[%emt 0:00:00]} (22... b5 $14) 23. Qd3 {[%emt 0:01:57]} (23. f4 $16) 23... a4 $11 {[%emt 0:00:00]} 24. Qb1 {[%emt 0:07:15]} axb3 {[%emt 0:00:00]} 25. axb3 {[%emt 0:00:01]} Rca8 {[%emt 0:00:00]} 26. h3 {[%emt 0:02:30]} Ra3 {[%emt 0:00:00]} 27. Kh2 {[%emt 0:01:18]} Qe7 {[%emt 0:00:00]} (27... Bxc4 $6 28. Rc1 b5 (28... Rxb3 $2 29. Qxb3 Bxb3 30. Rxc7 $18) 29. bxc4 Rxe3 30. cxb5 $16) 28. f4 {[%emt 0:06:27]} Bxc4 {[%emt 0:00:00]} 29. fxe5 $1 {[%emt 0:06:21]} Ne8 {[%emt 0:00:00]} (29... Qxe5 $2 30. Bf4 (30. bxc4 $2 Rxe3 31. Qxb7 Qxg3+ 32. Kg1 Rf8 $19) 30... Qb5 31. bxc4 Qxb1 32. Rxb1 $18) 30. Rd7 $1 {[%emt 0:49:47]} (30. bxc4 Rxe3 31. Qxb7 (31. Bxb7 $2 Rb8 $19) 31... Qxb7 32. Bxb7 Ra5 $14) 30... Qe6 {[%emt 0:00:00]} 31. bxc4 {[%emt 0:00:00]} (31. Bxb7 $2 Rxb3 32. Qe4 Ra5 $19) (31. Rxb7 Ra1 32. Qxa1 Rxa1 33. Rxa1 Bd5 34. Bxd5 Qxd5 $11) 31... Rxe3 {[%emt 0:00:00]} 32. Qxb7 {[%emt 0:00:00]} (32. Bxb7 $2 Re2+ 33. Bg2 Raa2 $19 (33... Qxc4 34. R1d2 $11) (33... Qxe5 34. R7d2 $11)) 32... Ra2 {[%emt 0:00:00]} 33. Re7 $36 {[%emt 0:00:00][%mdl 2048] Black is under strong pressure.} Qg6 {[%emt 0:00:00]} 34. Rxe8+ {[%emt 0:00:00]} (34. g4 $1 $16 Kh7 35. Qb1 (35. Rxe8 f5 $11)) 34... Kh7 {[%emt 0:00:00]} 35. g4 {[%emt 0:00:00] Rdd8 would now be deadly.} Ree2 $2 {[%emt 0:00:00][%mdl 8192]} (35... f5 $11 36. Red8 Rxh3+ 37. Kxh3 Qxg4+ 38. Kh2 Qf4+ 39. Kh1 Qh4+ 40. Kg1 Qf2+ 41. Kh2 Qh4+ 42. Kg1 Qf2+ 43. Kh2 Qh4+ 44. Kg1) 36. Rg1 $18 {[%emt 0:00:00]} Qc2 {[%emt 0:00:00]} 37. Qf3 {[%emt 0:00:00]} (37. Rf8 $142) 37... Rf2 {[%emt 0:00:00]} 38. Qg3 {[%emt 0:00:00] Black must now prevent e6.} Rb2 {[%emt 0:00:00]} (38... Qxc4 {keeps fighting.} 39. e6 fxe6) 39. e6 $2 {[%emt 0:00:00]} (39. g5 $18 {is the precise move to win.} Qxc4 40. gxh6) 39... Rb3 $16 {[%emt 0:00:00] [#]} 40. exf7 $1 {[%emt 0:00:00]} Rxg3 {[%emt 0:00:00]} 41. Kxg3 {[%emt 0:00:00] And now Be4+ would win.} Rxf7 $2 {[%emt 0:00:00][%mdl 8192]} (41... Qxc4 $16 42. Be4+ (42. Kxf2 Qxf7+ 43. Bf3 Qxe8 $15) (42. f8=N+ Rxf8 43. Be4+ Kg8 $11) 42... g6) 42. Kh2 $2 {[%emt 0:06:00]} ({White must play} 42. Be4+ $18 Qxe4 43. Rxe4) 42... Rf2 {[%mdl 1024] Black has strong compensation.} 43. Kg3 {[%emt 0:00:30] Be4+ is the strong threat.} Qd2 {[%emt 0:21:00]} 44. Rf8 {[%emt 0:00:30][%mdl 8192] [#] Prevents Qf4+} g6 $2 {[%emt 0:00:30]} 45. Be4 $2 {[%emt 0:00:00][%mdl 40960] Black used his chance.   Weighted Error Value: White=0.65/Black=0.40.  Loses game:     	White=2     	Black=2      Missed win:     	White=2     	Black=1      Mistake:       	White=2     	Black=2      Inaccurate:     	White=2     	Black=4      OK:         	White=9     	Black=13     Best:        	White=3     	Black=4      Strong:       	White=3     	---       . Loss on time!?} 1-0

[Event "12th Senioren-Cup Tegernsee 2024"]
[Site "Rottach-Egern"]
[Date "2024.04.14"]
[Round "9.2"]
[White "Luciani, Carlo"]
[Black "Heinbuch, Detlef Ulrich"]
[Result "1/2-1/2"]
[ECO "B11"]
[WhiteElo "2159"]
[BlackElo "2273"]
[Annotator "TA"]
[PlyCount "28"]
[EventDate "2024.04.02"]
[EventType "swiss"]
[EventCountry "GER"]
[SourceTitle "playchess.com"]
[Source "ChessBase"]
[SourceQuality "1"]
[TimeControl "7800+30"]

{[%evp 13,28,20,39,0,20,-15,3,-8,-7,-12,0,0,-9,-26,-25,-61,-16]} 1. e4 {[%emt 0:00:05]} c6 {[%emt 0:00:11]} 2. Nc3 {[%emt 0:00:09]} d5 {[%emt 0:00:19]} 3. Nf3 {[%emt 0:00:09]} Bg4 {[%emt 0:00:20]} 4. h3 {[%emt 0:00:27]} Bxf3 {[%emt 0:00:24]} 5. Qxf3 {[%emt 0:00:13]} e6 {[%emt 0:00:13]} 6. d3 {[%emt 0:00:32]} Nf6 {[%emt 0:01:29]} 7. Bd2 {[%emt 0:00:21]} Be7 {[%emt 0:03:15]} 8. g3 {[%emt 0:04:54]} (8. g4 $5) 8... Qb6 {[%emt 0:05:16]} 9. Rb1 {[%emt 0:02:46]} d4 {[%emt 0:01:19]} 10. Nd1 {[%emt 0:02:44] The position is equal.} Nbd7 {[%emt 0:08:47]} 11. Bg2 {[%emt 0:00:52]} h5 {[%emt 0:04:58][%cal Bh7h5,Bh5h4][%mdl 32]} 12. Qe2 {[%emt 0:03:07]} h4 {[%emt 0:03:04] Hoping for ...hxg3.} 13. e5 {[%emt 0:04:20]} Nd5 {[%emt 0:02:10]} 14. g4 {[%emt 0:02:58]} g5 {[%emt 0:00:29] Weighted Error Value: White=0.21 (precise) /Black=0.10 (very precise) .  Inaccurate:     	White=2     	Black=1      OK:         	White=1     	Black=1} 1/2-1/2

[Event "12th Senioren-Cup Tegernsee 2024"]
[Site "Rottach-Egern"]
[Date "2024.04.14"]
[Round "9.4"]
[White "Belke, Frank"]
[Black "Lindam, Ingo"]
[Result "1/2-1/2"]
[ECO "E71"]
[WhiteElo "2163"]
[BlackElo "2160"]
[Annotator "TA"]
[PlyCount "38"]
[EventDate "2024.04.02"]
[EventType "swiss"]
[EventCountry "GER"]
[SourceTitle "playchess.com"]
[Source "ChessBase"]
[SourceQuality "1"]
[TimeControl "7800+30"]

{[%evp 10,38,39,16,22,5,32,27,17,16,37,43,55,10,52,42,86,56,82,0,30,0,-4,-74,-18,-17,-22,-10,-26,-17,-15]} 1. d4 {[%emt 0:00:03]} Nf6 {[%emt 0:00:05]} 2. c4 {[%emt 0:00:02]} g6 {[%emt 0:00:11]} 3. Nc3 {[%emt 0:00:01]} Bg7 {[%emt 0:00:17]} 4. e4 {[%emt 0:00:01]} d6 {[%emt 0:00:13]} 5. Nge2 {[%emt 0:00:02]} O-O {[%emt 0:00:18]} 6. h3 {[%emt 0:00:01]} c5 {[%emt 0:06:48]} 7. d5 {[%emt 0:00:42]} b5 {[%emt 0:01:00]} 8. cxb5 {[%emt 0:00:09]} (8. Nxb5 Nxe4 9. g4 f5 $17 (9... Qa5+ 10. Nbc3 $15)) 8... a6 {[%emt 0:00:16] White has an edge.} 9. Ng3 {[%emt 0:00:08]} h5 {[%emt 0:05:10]} 10. Bd3 {[%emt 0:04:22]} axb5 {[%emt 0:04:31]} 11. Nxb5 {[%emt 0:00:26]} Ba6 {[%emt 0:32:06] [#] Strongly threatening ...Bxb5.} 12. Nc3 {[%emt 0:01:31]} Nbd7 {[%emt 0:13:08][%cal Bb8d7,Bd7e5,Be5c4][%mdl 32]} 13. O-O {[%emt 0:01:01]} Qb6 {[%emt 0:11:23]} 14. Re1 {[%emt 0:05:27]} (14. Nge2 $16) 14... Ne5 {[%emt 0:03:40]} 15. Bxa6 {[%emt 0:00:28]} Qxa6 {[%emt 0:00:20]} 16. Bg5 {[%emt 0:05:21]} (16. Qc2 $11 {remains equal.}) 16... Nh7 {[%emt 0:06:08]} ({Black should try} 16... Nd3 $17 17. Re2 Nh7) 17. Bxe7 $11 {[%emt 0:07:53]} Rfe8 {[%emt 0:00:33]} 18. Bxd6 {[%emt 0:00:12]} Qxd6 {[%emt 0:00:58]} 19. f4 {[%emt 0:00:06]} Nc4 {[%emt 0:04:42] Weighted Error Value: White=0.27 (precise) /Black=0.21 (precise) .  Mistake:       	White=2     	Black=1      Inaccurate:     	White=3     	Black=4      OK:         	White=5     	Black=5      Best:        	White=1     	---} 1/2-1/2

[Event "12th Senioren-Cup Tegernsee 2024"]
[Site "Rottach-Egern"]
[Date "2024.04.14"]
[Round "9.7"]
[White "Strobel, Walter"]
[Black "Pollmann, Sascha"]
[Result "1/2-1/2"]
[ECO "B36"]
[WhiteElo "2147"]
[BlackElo "2061"]
[Annotator "NA RC"]
[PlyCount "36"]
[EventDate "2024.04.02"]
[EventType "swiss"]
[EventCountry "GER"]
[SourceTitle "playchess.com"]
[Source "ChessBase"]
[SourceQuality "1"]
[TimeControl "7800+30"]

1. e4 {[%emt 0:00:04]} c5 {[%emt 0:00:12]} 2. Nf3 {[%emt 0:00:21]} g6 {[%emt 0:00:15]} 3. d4 {[%emt 0:01:15]} cxd4 {[%emt 0:00:08]} 4. Nxd4 {[%emt 0:00:20]} Nc6 {[%emt 0:00:17]} 5. c4 {[%emt 0:03:12]} Nf6 {[%emt 0:00:28]} 6. Nc3 {[%emt 0:00:39]} d6 {[%emt 0:00:17]} 7. f3 {[%emt 0:01:50]} Nxd4 {[%emt 0:00:19]} 8. Qxd4 {[%emt 0:00:06]} Bg7 {[%emt 0:00:14]} 9. Be3 {[%emt 0:00:13]} O-O {[%emt 0:00:23]} 10. Qd2 {[%emt 0:00:33]} Be6 {[%emt 0:00:27]} 11. Rc1 {[%emt 0:02:04]} Qa5 {[%emt 0:00:37]} 12. Nd5 {[%emt 0:05:00]} Qxa2 {[%emt 0:00:33]} 13. Nxe7+ {[%emt 0:00:24]} Kh8 {[%emt 0:00:14]} 14. Be2 {[%emt 0:07:36]} Ng8 {[%emt 0:01:39]} 15. Nxg8 {[%emt 0:07:24]} Kxg8 {[%emt 0:00:13]} 16. Bd4 {[%emt 0:01:12]} Bxd4 {[%emt 0:00:36]} 17. Qxd4 {[%emt 0:00:05]} Qa5+ {[%emt 0:00:19]} 18. Kf2 {[%emt 0:01:49]} Qe5 {[%emt 0:00:18]} 1/2-1/2

[Event "12th Senioren-Cup Tegernsee 2024"]
[Site "Rottach-Egern"]
[Date "2024.04.14"]
[Round "9.8"]
[White "Haas, Frank-Martin"]
[Black "Wenner, Tobias"]
[Result "0-1"]
[ECO "B14"]
[WhiteElo "2110"]
[BlackElo "2051"]
[Annotator "TA"]
[PlyCount "66"]
[EventDate "2024.04.02"]
[EventType "swiss"]
[EventCountry "GER"]
[SourceTitle "playchess.com"]
[Source "ChessBase"]
[SourceQuality "1"]
[TimeControl "7800+30"]

{[%evp 16,66,17,0,0,0,0,-40,-56,-52,-46,-50,-22,-42,-31,-71,31,18,25,29,24,30,29,30,28,10,13,14,43,-89,-92,-176,0,0,0,0,0,0,10,-105,-105,-245,-233,-289,-296,-266,-125,-1514,-1514,-1508,-1483,-6125,-5800]} 1. e4 {[%emt 0:00:02]} c6 {[%emt 0:00:10]} 2. d4 {[%emt 0:00:16]} d5 {[%emt 0:00:06]} 3. exd5 {[%emt 0:00:20]} cxd5 {[%emt 0:00:06]} 4. c4 {[%emt 0:00:04]} Nf6 {[%emt 0:00:14]} 5. Nc3 {[%emt 0:00:07]} g6 {[%emt 0:00:17]} 6. cxd5 {[%emt 0:04:09]} Nxd5 {[%emt 0:01:29]} 7. Bc4 {[%emt 0:00:19]} Nb6 {[%emt 0:00:29]} 8. Bb3 {[%emt 0:03:03]} Bg7 {[%emt 0:00:59]} 9. Be3 {[%emt 0:06:21]} O-O {[%emt 0:05:51]} 10. Nge2 {[%emt 0:12:02]} Nc6 {[%emt 0:04:08]} 11. h4 {[%emt 0:18:21]} Na5 {[%emt 0:08:55] Black is slightly better.} 12. Qc1 {[%emt 0:02:22]} Nxb3 {[%emt 0:02:03]} 13. axb3 {[%emt 0:00:06]} Nd5 {[%emt 0:20:13]} 14. Bh6 {[%emt 0:02:45]} Nb4 {[%emt 0:02:44] ...Nd3+ would now be deadly.} 15. Kf1 {[%emt 0:00:07]} Bf5 {[%emt 0:06:29]} (15... Bxh6 $17 16. Qxh6 Kh8) 16. h5 $14 {[%emt 0:27:36]} Qb6 {[%emt 0:12:18]} 17. Bxg7 {[%emt 0:29:43]} Kxg7 {[%emt 0:00:11]} 18. hxg6 {[%emt 0:02:29]} Bxg6 {[%emt 0:00:42]} 19. Qg5 {[%emt 0:03:13]} Qf6 {[%emt 0:06:15] Against Nf4} 20. Qh6+ {[%emt 0:03:16]} (20. Qxf6+ Kxf6 21. d5 Bd3 $11) 20... Kg8 {[%emt 0:01:03]} 21. Nf4 {[%emt 0:01:42]} Rfd8 {[%emt 0:04:44]} 22. Ra5 {[%emt 0:02:29]} (22. Nxg6 $14 Qxg6 23. Qh4) 22... Nd3 $1 $17 {[%emt 0:09:40]} (22... Qxd4 $2 23. Nxg6 hxg6 24. Qh7+ Kf8 25. Rh4 $18) 23. Nce2 {[%emt 0:08:50]} (23. Ncd5 $2 Rxd5 (23... Qxd4 24. Nxe7+ Kh8 25. Nfxg6+ fxg6 26. Qxh7#) 24. Rxd5 Nxf4 $19 (24... Qxf4 $2 25. Qxf4 Nxf4 26. Rd7 $19)) (23. Rh4 $17 Qxd4 (23... Nxb2 $2 24. Nxg6 hxg6 25. Nd5 $18) (23... Rxd4 24. Rg5 $17) 24. Nxd3 Qxd3+ 25. Kg1) 23... Qg7 $2 {[%emt 0:08:05]} (23... Nxb2 $2 24. Nxg6 hxg6 25. Qd2 $18) (23... Nxf4 $19 24. Qxf4 Qxf4 25. Nxf4 Rxd4) 24. Qh4 $11 {[%emt 0:01:30]} Nxf4 {[%emt 0:04:09]} (24... Nxb2 $2 25. Rh3 $18 (25. Qxe7 Nd3 $16)) 25. Qxf4 {[%emt 0:00:10]} Rac8 {[%emt 0:02:18]} 26. Rh3 {[%emt 0:03:22][%cal Oh3e3]} b6 {[%emt 0:03:23] Black is weak on the dark squares} 27. Rxa7 {[%emt 0:00:48]} (27. Ra1 $11) 27... e5 $1 $17 {[%emt 0:00:20]} 28. Qg5 {[%emt 0:05:17]} (28. Qxe5 $2 {is the wrong capture.} Qxe5 29. f4 Qe4 $19) (28. Qd2 $17 {is the only way for White.}) 28... exd4 $19 {[%emt 0:00:32] Strongly threatening ...d3.} 29. Rc7 {[%emt 0:00:51]} d3 {[%emt 0:03:10]} 30. Nc3 {[%emt 0:00:04] [#]} Qd4 $40 {[%emt 0:03:37][%mdl 128] White is in trouble.} (30... Ra8 $1 $19 {[%cal Ra8a1] is more deadly. ( -> ...Ra1+)} 31. Ra7 Qd4 32. Rxa8 Rxa8) 31. Nd5 $2 {[%emt 0:01:05][%mdl 8192] [#]} Rxc7 $1 {[%emt 0:10:50] Black is clearly winning.} (31... Rxd5 $2 {loses.} 32. Rxc8+ Kg7 33. Qh6+ Kf6 34. Rf3+ Rf5 35. Rc4 $18 (35. Rc6+ Ke7 $18)) 32. Qxd8+ {[%emt 0:02:08]} Kg7 {[%emt 0:00:07]} 33. Qg5 {[%emt 0:01:23] [#] Against Rc1+} Qxd5 $3 {[%emt 0:01:00][%mdl 512] Weighted Error Value: White=0.70/Black=0.24 (precise) .  Loses game:     	White=1     	---        Missed win:     	---       	Black=1      Mistake:       	White=4     	Black=2      Inaccurate:     	White=2     	Black=2      OK:         	White=11    	Black=9      Best:        	---       	Black=1      Strong:       	---       	Black=3} 0-1

[Event "12th Senioren-Cup Tegernsee 2024"]
[Site "Rottach-Egern"]
[Date "2024.04.14"]
[Round "9.9"]
[White "Scheckenbach, Franz"]
[Black "Heck, Norbert"]
[Result "1/2-1/2"]
[ECO "B28"]
[WhiteElo "2038"]
[BlackElo "2100"]
[Annotator "NA RC"]
[PlyCount "28"]
[EventDate "2024.04.02"]
[EventType "swiss"]
[EventCountry "GER"]
[SourceTitle "playchess.com"]
[Source "ChessBase"]
[SourceQuality "1"]
[TimeControl "7800+30"]

1. e4 {[%emt 0:00:04]} c5 {[%emt 0:00:11]} 2. Nf3 {[%emt 0:00:11]} a6 {[%emt 0:00:06]} 3. d3 {[%emt 0:00:10]} Nc6 {[%emt 0:00:29]} 4. g3 {[%emt 0:00:10]} g6 {[%emt 0:00:31]} 5. Bg2 {[%emt 0:00:09]} Bg7 {[%emt 0:00:10]} 6. O-O {[%emt 0:00:19]} d6 {[%emt 0:00:21]} 7. c3 {[%emt 0:00:35]} e5 {[%emt 0:03:36]} 8. a3 {[%emt 0:02:15]} Nge7 {[%emt 0:00:50]} 9. Be3 {[%emt 0:03:02]} O-O {[%emt 0:01:13]} 10. b4 {[%emt 0:01:20]} b6 {[%emt 0:01:30]} 11. Qc1 {[%emt 0:01:52]} f6 {[%emt 0:05:01]} 12. d4 {[%emt 0:02:15]} c4 {[%emt 0:04:17]} 13. d5 {[%emt 0:02:09]} Nb8 {[%emt 0:01:16]} 14. a4 {[%emt 0:07:36]} f5 {[%emt 0:03:30]} 1/2-1/2

[Event "12th Senioren-Cup Tegernsee 2024"]
[Site "Rottach-Egern"]
[Date "2024.04.14"]
[Round "9.10"]
[White "Jahn, Constanze"]
[Black "Mertens, Klaus"]
[Result "1/2-1/2"]
[ECO "B07"]
[WhiteElo "2042"]
[BlackElo "2093"]
[Annotator "NA RC"]
[PlyCount "22"]
[EventDate "2024.04.02"]
[EventType "swiss"]
[EventCountry "GER"]
[SourceTitle "playchess.com"]
[Source "ChessBase"]
[SourceQuality "1"]
[TimeControl "7800+30"]

1. e4 {[%emt 0:00:02]} d6 {[%emt 0:00:03]} 2. d4 {[%emt 0:00:05]} Nf6 {[%emt 0:00:04]} 3. Nc3 {[%emt 0:00:05]} c6 {[%emt 0:00:05]} 4. Bg5 {[%emt 0:00:12]} Nbd7 {[%emt 0:00:32]} 5. Qd2 {[%emt 0:01:23]} e5 {[%emt 0:01:54]} 6. Nf3 {[%emt 0:02:38]} Be7 {[%emt 0:00:28]} 7. dxe5 {[%emt 0:14:43]} dxe5 {[%emt 0:00:38]} 8. a4 {[%emt 0:03:29]} Qc7 {[%emt 0:02:45]} 9. Bc4 {[%emt 0:06:54]} O-O {[%emt 0:05:56]} 10. O-O {[%emt 0:02:40]} Nb6 {[%emt 0:03:34]} 11. Bb3 {[%emt 0:04:11]} Bg4 {[%emt 0:21:10]} 1/2-1/2